[Event "Late-Titled-Tuesday-Blitz-June-18-2024"]
[Site "Chess.com"]
[Date "2024.06.18"]
[Round "4"]
[White "vladislavkovalev"]
[Black "Javokhir_Sindarov05"]
[Result "1/2-1/2"]
[WhiteElo "2865"]
[BlackElo "3063"]
[TimeControl "180+1"]
[EndTime "14:42:31 PDT"]
[Termination "Game drawn by agreement"]

1. e4 {[%clk 0:03:00.9]} 1... e5 {[%clk 0:03:00.5]} 2. Nf3 {[%clk 0:03:01.3]}
2... Nc6 {[%clk 0:03:01.2]} 3. Bb5 {[%clk 0:03:01.7]} 3... a6 {[%clk 0:03:01.5]}
4. Ba4 {[%clk 0:03:02.3]} 4... Nf6 {[%clk 0:03:02.1]} 5. O-O {[%clk 0:03:02.6]}
5... Bc5 {[%clk 0:03:02.8]} 6. d3 {[%clk 0:02:51.2]} 6... b5 {[%clk 0:03:00.6]}
7. Bb3 {[%clk 0:02:51.4]} 7... d6 {[%clk 0:03:00.7]} 8. c3 {[%clk 0:02:49.6]}
8... O-O {[%clk 0:03:00.4]} 9. h3 {[%clk 0:02:47.8]} 9... h6 {[%clk 0:02:57.9]}
10. a4 {[%clk 0:02:46.8]} 10... Rb8 {[%clk 0:02:51.9]} 11. axb5 {[%clk
0:02:45.9]} 11... axb5 {[%clk 0:02:52.8]} 12. Re1 {[%clk 0:02:42.9]} 12... Re8
{[%clk 0:02:21]} 13. Nbd2 {[%clk 0:02:42.6]} 13... Bb6 {[%clk 0:02:18.6]} 14.
Nf1 {[%clk 0:02:41.3]} 14... Ne7 {[%clk 0:02:19.2]} 15. Ng3 {[%clk 0:02:34.9]}
15... Ng6 {[%clk 0:02:19.4]} 16. Nh2 {[%clk 0:02:09.9]} 16... d5 {[%clk
0:01:40.4]} 17. Qf3 {[%clk 0:01:55.6]} 17... Be6 {[%clk 0:01:30]} 18. Bc2 {[%clk
0:01:43.2]} 18... dxe4 {[%clk 0:01:13.3]} 19. Nxe4 {[%clk 0:01:39.2]} 19... Nxe4
{[%clk 0:00:57.6]} 20. dxe4 {[%clk 0:01:32.4]} 20... Qh4 {[%clk 0:00:57.8]} 21.
Ng4 {[%clk 0:01:19]} 21... Rbd8 {[%clk 0:00:36.5]} 22. Ne3 {[%clk 0:01:15.2]}
22... Qf4 {[%clk 0:00:22]} 23. Qe2 {[%clk 0:01:03.2]} 23... Qf6 {[%clk
0:00:21.9]} 24. Nf5 {[%clk 0:00:25.4]} 24... Nh4 {[%clk 0:00:21.4]} 25. Qg4
{[%clk 0:00:17.8]} 25... Nxf5 {[%clk 0:00:13.1]} 26. exf5 {[%clk 0:00:18.7]}
26... Bc4 {[%clk 0:00:07.6]} 27. Be4 {[%clk 0:00:13.9]} 27... Bd3 {[%clk
0:00:07.5]} 28. Be3 {[%clk 0:00:11.2]} 28... Bxe3 {[%clk 0:00:05.1]} 29. Rxe3
{[%clk 0:00:12.1]} 29... Bxe4 {[%clk 0:00:06]} 30. Qxe4 {[%clk 0:00:12.7]} 30...
Rd2 {[%clk 0:00:06.7]} 31. b4 {[%clk 0:00:09.6]} 31... Qd6 {[%clk 0:00:05]} 32.
Rae1 {[%clk 0:00:07.1]} 32... f6 {[%clk 0:00:05]} 33. Qg4 {[%clk 0:00:04.3]}
33... Rd8 {[%clk 0:00:04.5]} 34. Rg3 {[%clk 0:00:03.7]} 34... Rd7 {[%clk
0:00:05]} 35. Rge3 {[%clk 0:00:02]} 35... Rd1 {[%clk 0:00:04.3]} 36. Rxd1 {[%clk
0:00:01.8]} 36... Qxd1+ {[%clk 0:00:05.2]} 37. Kh2 {[%clk 0:00:01.9]} 37... Qxg4
{[%clk 0:00:05.2]} 38. hxg4 {[%clk 0:00:02.8]} 38... Kf7 {[%clk 0:00:06.1]} 39.
Kg3 {[%clk 0:00:03]} 39... Rd5 {[%clk 0:00:06.5]} 40. Kf3 {[%clk 0:00:03.4]}
40... c5 {[%clk 0:00:07.2]} 41. bxc5 {[%clk 0:00:03.3]} 41... Rxc5 {[%clk
0:00:08.1]} 42. Ke2 {[%clk 0:00:03.9]} 42... g6 {[%clk 0:00:06.1]} 43. fxg6+
{[%clk 0:00:03.9]} 43... Kxg6 {[%clk 0:00:07]} 44. Kd2 {[%clk 0:00:02.4]} 44...
Rc4 {[%clk 0:00:07]} 45. f3 {[%clk 0:00:02.1]} 45... Ra4 {[%clk 0:00:06.4]} 46.
Ke2 {[%clk 0:00:01.4]} 46... Ra2+ {[%clk 0:00:04.6]} 47. Kf1 {[%clk 0:00:02.1]}
47... Rc2 {[%clk 0:00:04.3]} 48. Rd3 {[%clk 0:00:02.4]} 48... Kg5 {[%clk
0:00:04]} 49. Kg1 {[%clk 0:00:02.4]} 49... Kf4 {[%clk 0:00:03.6]} 50. Kh2 {[%clk
0:00:03.1]} 50... Kg5 {[%clk 0:00:03.7]} 51. Rd5 {[%clk 0:00:03.3]} 51... Rxc3
{[%clk 0:00:04]} 52. Rxb5 {[%clk 0:00:03.7]} 52... h5 {[%clk 0:00:04]} 1/2-1/2

[Event "Late-Titled-Tuesday-Blitz-June-18-2024"]
[Site "Chess.com"]
[Date "2024.06.18"]
[Round "4"]
[White "Evan_Attaker"]
[Black "Orest_Vovk"]
[Result "1-0"]
[WhiteElo "2747"]
[BlackElo "2553"]
[TimeControl "180+1"]
[EndTime "14:42:32 PDT"]
[Termination "Evan_Attaker won by checkmate"]

1. a3 {[%clk 0:03:00.9]} 1... g5 {[%clk 0:02:59.4]} 2. d3 {[%clk 0:02:57.2]}
2... h6 {[%clk 0:02:58.3]} 3. h4 {[%clk 0:02:56.6]} 3... g4 {[%clk 0:02:57.3]}
4. h5 {[%clk 0:02:56.8]} 4... g3 {[%clk 0:02:56]} 5. fxg3 {[%clk 0:02:54.9]}
5... Nf6 {[%clk 0:02:55.6]} 6. e4 {[%clk 0:02:53.3]} 6... d5 {[%clk 0:02:55.8]}
7. e5 {[%clk 0:02:52.2]} 7... Ng4 {[%clk 0:02:56]} 8. Bf4 {[%clk 0:02:48.1]}
8... Bg7 {[%clk 0:02:47.7]} 9. d4 {[%clk 0:02:45.9]} 9... c5 {[%clk 0:02:45.2]}
10. Be2 {[%clk 0:02:43.1]} 10... f5 {[%clk 0:02:35.2]} 11. Bxg4 {[%clk 0:02:38]}
11... fxg4 {[%clk 0:02:35]} 12. Qd3 {[%clk 0:02:36.4]} 12... O-O {[%clk
0:02:34.3]} 13. c3 {[%clk 0:02:27.4]} 13... Bf5 {[%clk 0:02:32.8]} 14. Qd1
{[%clk 0:02:26.4]} 14... Qb6 {[%clk 0:02:31.7]} 15. Qd2 {[%clk 0:02:10.7]} 15...
Nc6 {[%clk 0:02:27.7]} 16. Ne2 {[%clk 0:02:10.6]} 16... Kh7 {[%clk 0:02:17.4]}
17. b4 {[%clk 0:02:04.1]} 17... cxd4 {[%clk 0:02:16.1]} 18. cxd4 {[%clk
0:02:02.7]} 18... Be4 {[%clk 0:02:12.7]} 19. Nbc3 {[%clk 0:01:57.7]} 19... Bxg2
{[%clk 0:02:09.4]} 20. Rh2 {[%clk 0:01:53.8]} 20... Bf3 {[%clk 0:02:07]} 21. Rf2
{[%clk 0:01:53.5]} 21... e6 {[%clk 0:02:04.4]} 22. Qd3+ {[%clk 0:01:51.5]} 22...
Kh8 {[%clk 0:01:50.4]} 23. Rc1 {[%clk 0:01:40.2]} 23... Ne7 {[%clk 0:01:44.5]}
24. Ng1 {[%clk 0:01:34.8]} 24... Bh1 {[%clk 0:01:32.5]} 25. Rh2 {[%clk
0:01:30.7]} 25... Be4 {[%clk 0:01:30.6]} 26. Nxe4 {[%clk 0:01:29.8]} 26... dxe4
{[%clk 0:01:29.5]} 27. Qxe4 {[%clk 0:01:30.4]} 27... Nf5 {[%clk 0:01:28.6]} 28.
Ne2 {[%clk 0:01:23.6]} 28... Rad8 {[%clk 0:01:09.4]} 29. Rd1 {[%clk 0:01:22.7]}
29... Qa6 {[%clk 0:01:00.8]} 30. Bc1 {[%clk 0:01:12.2]} 30... Qc4 {[%clk
0:00:47.2]} 31. Rf2 {[%clk 0:01:07.8]} 31... Ne7 {[%clk 0:00:43.8]} 32. Qxg4
{[%clk 0:01:04.5]} 32... Rxf2 {[%clk 0:00:39.6]} 33. Kxf2 {[%clk 0:01:05.4]}
33... Rf8+ {[%clk 0:00:36.4]} 34. Bf4 {[%clk 0:01:02.6]} 34... Nf5 {[%clk
0:00:30.8]} 35. Qf3 {[%clk 0:00:54.6]} 35... b5 {[%clk 0:00:21.8]} 36. Rc1
{[%clk 0:00:48.5]} 36... Qa2 {[%clk 0:00:21.5]} 37. Rc7 {[%clk 0:00:37.6]} 37...
Nxd4 {[%clk 0:00:19.6]} 38. Qe4 {[%clk 0:00:32.3]} 38... Nxe2 {[%clk 0:00:15]}
39. Qxe2 {[%clk 0:00:28.5]} 39... Qd5 {[%clk 0:00:12.9]} 40. Kg1 {[%clk
0:00:20.3]} 40... a6 {[%clk 0:00:07.1]} 41. Kh2 {[%clk 0:00:19.8]} 41... Qd8
{[%clk 0:00:04.9]} 42. Rb7 {[%clk 0:00:17.2]} 42... Qd5 {[%clk 0:00:03.8]} 43.
Ra7 {[%clk 0:00:17.2]} 43... Rc8 {[%clk 0:00:03.1]} 44. Rxa6 {[%clk 0:00:13.1]}
44... Qb3 {[%clk 0:00:02.9]} 45. Rd6 {[%clk 0:00:12.2]} 45... Rc2 {[%clk
0:00:01.8]} 46. Rd2 {[%clk 0:00:12.8]} 46... Rc3 {[%clk 0:00:02.2]} 47. Rd8+
{[%clk 0:00:11.8]} 47... Bf8 {[%clk 0:00:01.7]} 48. Rxf8+ {[%clk 0:00:11.3]}
48... Kg7 {[%clk 0:00:02.2]} 49. Rd8 {[%clk 0:00:11.6]} 49... Rc2 {[%clk
0:00:02.3]} 50. Rd2 {[%clk 0:00:12.2]} 50... Rc1 {[%clk 0:00:02.3]} 51. Qg4+
{[%clk 0:00:12.6]} 51... Kf7 {[%clk 0:00:01.7]} 52. Rd7+ {[%clk 0:00:12.9]}
52... Ke8 {[%clk 0:00:01.9]} 53. Bxc1 {[%clk 0:00:11.9]} 53... Qc2+ {[%clk
0:00:01.7]} 54. Rd2 {[%clk 0:00:11]} 54... Qxc1 {[%clk 0:00:02.3]} 55. Qxe6+
{[%clk 0:00:11.5]} 55... Kf8 {[%clk 0:00:02.8]} 56. Rd8+ {[%clk 0:00:12]} 56...
Kg7 {[%clk 0:00:03.2]} 57. Qg6# {[%clk 0:00:12.6]} 1-0

[Event "Late-Titled-Tuesday-Blitz-June-18-2024"]
[Site "Chess.com"]
[Date "2024.06.18"]
[Round "4"]
[White "th3d4rkness"]
[Black "patzer-reloaded"]
[Result "1/2-1/2"]
[WhiteElo "2209"]
[BlackElo "2454"]
[TimeControl "180+1"]
[EndTime "14:42:37 PDT"]
[Termination "Game drawn by repetition"]

1. e4 {[%clk 0:03:00.9]} 1... d6 {[%clk 0:02:59.8]} 2. d4 {[%clk 0:03:00.2]}
2... Nf6 {[%clk 0:03:00]} 3. Nc3 {[%clk 0:03:00.2]} 3... g6 {[%clk 0:03:00.4]}
4. Nge2 {[%clk 0:03:00.3]} 4... Bg7 {[%clk 0:03:00.6]} 5. g3 {[%clk 0:03:00.6]}
5... O-O {[%clk 0:03:00.6]} 6. Bg2 {[%clk 0:03:00.9]} 6... Nbd7 {[%clk
0:03:00.8]} 7. O-O {[%clk 0:03:01]} 7... Rb8 {[%clk 0:03:01.1]} 8. a4 {[%clk
0:02:59.5]} 8... c5 {[%clk 0:03:00.4]} 9. d5 {[%clk 0:02:54.4]} 9... b6 {[%clk
0:02:58.6]} 10. h3 {[%clk 0:02:53.7]} 10... a6 {[%clk 0:02:58.2]} 11. Kh2 {[%clk
0:02:50.8]} 11... b5 {[%clk 0:02:57.7]} 12. axb5 {[%clk 0:02:49.6]} 12... axb5
{[%clk 0:02:58.6]} 13. f4 {[%clk 0:02:48]} 13... Ne8 {[%clk 0:02:57.3]} 14. g4
{[%clk 0:02:39.9]} 14... Nc7 {[%clk 0:02:55.7]} 15. Ng3 {[%clk 0:02:38.8]} 15...
b4 {[%clk 0:02:32.9]} 16. Nce2 {[%clk 0:02:37.8]} 16... Ba6 {[%clk 0:02:30]} 17.
Re1 {[%clk 0:02:34.9]} 17... Bxe2 {[%clk 0:02:26]} 18. Qxe2 {[%clk 0:02:30]}
18... Nb5 {[%clk 0:02:26.9]} 19. Qc4 {[%clk 0:02:08.1]} 19... Nd4 {[%clk
0:02:21.4]} 20. Qd3 {[%clk 0:01:32.3]} 20... b3 {[%clk 0:02:17.5]} 21. cxb3
{[%clk 0:01:25.2]} 21... Nxb3 {[%clk 0:02:14.6]} 22. Rb1 {[%clk 0:01:14.9]}
22... Nxc1 {[%clk 0:02:08.4]} 23. Rexc1 {[%clk 0:01:12.9]} 23... Bxb2 {[%clk
0:01:55.9]} 24. Re1 {[%clk 0:01:10.5]} 24... Qa5 {[%clk 0:01:46]} 25. e5 {[%clk
0:01:09]} 25... dxe5 {[%clk 0:01:36.2]} 26. f5 {[%clk 0:01:08.2]} 26... Bc3
{[%clk 0:01:10.6]} 27. Rec1 {[%clk 0:01:01.7]} 27... Bd2 {[%clk 0:01:01.2]} 28.
Rd1 {[%clk 0:01:00.3]} 28... Bf4 {[%clk 0:00:58.9]} 29. Kh1 {[%clk 0:00:49.3]}
29... Bxg3 {[%clk 0:00:53.2]} 30. Qxg3 {[%clk 0:00:48.6]} 30... Rb4 {[%clk
0:00:52.2]} 31. Rxb4 {[%clk 0:00:44.7]} 31... cxb4 {[%clk 0:00:47.4]} 32. d6
{[%clk 0:00:43]} 32... exd6 {[%clk 0:00:37.3]} 33. Rxd6 {[%clk 0:00:42.6]} 33...
Qa1+ {[%clk 0:00:31.8]} 34. Kh2 {[%clk 0:00:42.7]} 34... Nc5 {[%clk 0:00:26.5]}
35. Rd5 {[%clk 0:00:20.6]} 35... Rc8 {[%clk 0:00:21.6]} 36. Rxe5 {[%clk
0:00:15.8]} 36... b3 {[%clk 0:00:21]} 37. fxg6 {[%clk 0:00:16.1]} 37... hxg6
{[%clk 0:00:20.1]} 38. Re1 {[%clk 0:00:10.5]} 38... b2 {[%clk 0:00:15.9]} 39.
Qe5 {[%clk 0:00:10.4]} 39... b1=Q {[%clk 0:00:09.5]} 40. Qxa1 {[%clk 0:00:07.1]}
40... Qxa1 {[%clk 0:00:07.3]} 41. Rxa1 {[%clk 0:00:06.7]} 41... Nd3 {[%clk
0:00:08]} 42. Ra2 {[%clk 0:00:04.5]} 42... Nf4 {[%clk 0:00:06.7]} 43. Bd5 {[%clk
0:00:04.2]} 43... Nxd5 {[%clk 0:00:05]} 44. Rd2 {[%clk 0:00:04.7]} 44... Nf4
{[%clk 0:00:04.9]} 45. Kg3 {[%clk 0:00:05.3]} 45... g5 {[%clk 0:00:05.3]} 46. h4
{[%clk 0:00:05.5]} 46... f6 {[%clk 0:00:02.9]} 47. hxg5 {[%clk 0:00:05.4]} 47...
fxg5 {[%clk 0:00:03.1]} 48. Rd6 {[%clk 0:00:04.7]} 48... Rc5 {[%clk 0:00:03]}
49. Rd7 {[%clk 0:00:04.9]} 49... Kf8 {[%clk 0:00:02.9]} 50. Kf3 {[%clk
0:00:05.4]} 50... Ne6 {[%clk 0:00:02.7]} 51. Ra7 {[%clk 0:00:05.2]} 51... Ke8
{[%clk 0:00:02.7]} 52. Ke4 {[%clk 0:00:05.6]} 52... Kf8 {[%clk 0:00:01]} 53.
Ra8+ {[%clk 0:00:06]} 53... Kf7 {[%clk 0:00:01]} 54. Ra7+ {[%clk 0:00:06.7]}
54... Kf6 {[%clk 0:00:01.9]} 55. Ra6 {[%clk 0:00:06.9]} 55... Re5+ {[%clk
0:00:02.8]} 56. Kf3 {[%clk 0:00:06.6]} 56... Rc5 {[%clk 0:00:03.4]} 57. Rb6
{[%clk 0:00:06.3]} 57... Re5 {[%clk 0:00:04.3]} 58. Ra6 {[%clk 0:00:06.2]} 58...
Ke7 {[%clk 0:00:04.9]} 59. Ra7+ {[%clk 0:00:05.8]} 59... Kf6 {[%clk 0:00:05.4]}
60. Ra6 {[%clk 0:00:06.2]} 1/2-1/2

[Event "Late-Titled-Tuesday-Blitz-June-18-2024"]
[Site "Chess.com"]
[Date "2024.06.18"]
[Round "4"]
[White "Fandorine"]
[Black "secretworker2027"]
[Result "1/2-1/2"]
[WhiteElo "2916"]
[BlackElo "2673"]
[TimeControl "180+1"]
[EndTime "14:42:44 PDT"]
[Termination "Game drawn - insufficient material"]

1. c4 {[%clk 0:03:00.9]} 1... e5 {[%clk 0:02:57.1]} 2. g3 {[%clk 0:03:00.8]}
2... Nf6 {[%clk 0:02:56.8]} 3. Bg2 {[%clk 0:03:00.8]} 3... h6 {[%clk 0:02:57.2]}
4. d3 {[%clk 0:03:00.1]} 4... c6 {[%clk 0:02:57]} 5. Nf3 {[%clk 0:02:59.8]} 5...
Bb4+ {[%clk 0:02:56.6]} 6. Nc3 {[%clk 0:02:56.7]} 6... d6 {[%clk 0:02:51.9]} 7.
O-O {[%clk 0:02:56.4]} 7... O-O {[%clk 0:02:51.7]} 8. Qc2 {[%clk 0:02:55.1]}
8... Ba5 {[%clk 0:02:46.4]} 9. a3 {[%clk 0:02:50.5]} 9... Bf5 {[%clk 0:02:43.4]}
10. b4 {[%clk 0:02:48.4]} 10... Bc7 {[%clk 0:02:43.3]} 11. Bb2 {[%clk
0:02:46.5]} 11... Re8 {[%clk 0:02:43.2]} 12. e4 {[%clk 0:02:41.5]} 12... Bh7
{[%clk 0:02:41.9]} 13. Rad1 {[%clk 0:02:39.9]} 13... Nbd7 {[%clk 0:02:37.9]} 14.
Rfe1 {[%clk 0:02:36.7]} 14... Nf8 {[%clk 0:02:37.6]} 15. d4 {[%clk 0:02:35.2]}
15... Qe7 {[%clk 0:02:34.6]} 16. Qb3 {[%clk 0:02:31.3]} 16... a5 {[%clk
0:02:22.4]} 17. c5 {[%clk 0:02:23.3]} 17... axb4 {[%clk 0:02:21.1]} 18. axb4
{[%clk 0:02:23.2]} 18... N8d7 {[%clk 0:01:50.9]} 19. dxe5 {[%clk 0:01:58.3]}
19... dxe5 {[%clk 0:01:46.4]} 20. Nh4 {[%clk 0:01:58.5]} 20... Nf8 {[%clk
0:01:43.5]} 21. Nf5 {[%clk 0:01:58.4]} 21... Qe6 {[%clk 0:01:40.1]} 22. Qxe6
{[%clk 0:01:36.3]} 22... Nxe6 {[%clk 0:01:33.5]} 23. Nd6 {[%clk 0:01:33.2]}
23... Reb8 {[%clk 0:01:29.8]} 24. Nc4 {[%clk 0:01:33.1]} 24... Nd4 {[%clk
0:01:27.6]} 25. Rd2 {[%clk 0:01:07.1]} 25... Rd8 {[%clk 0:01:17.6]} 26. Red1
{[%clk 0:01:04.9]} 26... Bg6 {[%clk 0:01:17.5]} 27. h3 {[%clk 0:01:03.1]} 27...
Kh7 {[%clk 0:01:07]} 28. f4 {[%clk 0:00:58.1]} 28... exf4 {[%clk 0:00:45.7]} 29.
Rxd4 {[%clk 0:00:57.8]} 29... Rxd4 {[%clk 0:00:45.4]} 30. Rxd4 {[%clk
0:00:58.7]} 30... fxg3 {[%clk 0:00:45.7]} 31. Nd6 {[%clk 0:00:48.8]} 31... b6
{[%clk 0:00:38.3]} 32. e5 {[%clk 0:00:38.5]} 32... bxc5 {[%clk 0:00:38.1]} 33.
bxc5 {[%clk 0:00:39.2]} 33... Rb8 {[%clk 0:00:35.5]} 34. Bc1 {[%clk 0:00:20.5]}
34... Ba5 {[%clk 0:00:34]} 35. Bd2 {[%clk 0:00:15.4]} 35... Nd7 {[%clk
0:00:33.8]} 36. Nxf7 {[%clk 0:00:06.5]} 36... Nxc5 {[%clk 0:00:33.8]} 37. Nd6
{[%clk 0:00:04.9]} 37... Bb6 {[%clk 0:00:32.9]} 38. Kh1 {[%clk 0:00:03.6]} 38...
Nb3 {[%clk 0:00:33]} 39. Rb4 {[%clk 0:00:03.8]} 39... Nxd2 {[%clk 0:00:32.8]}
40. Bxc6 {[%clk 0:00:04.3]} 40... Bc7 {[%clk 0:00:31.4]} 41. Rxb8 {[%clk
0:00:04.2]} 41... Bxb8 {[%clk 0:00:32.2]} 42. Kg2 {[%clk 0:00:04.6]} 42... Bc7
{[%clk 0:00:29.9]} 43. Kxg3 {[%clk 0:00:03.8]} 43... Ba5 {[%clk 0:00:28.9]} 44.
Nd5 {[%clk 0:00:04.1]} 44... Ne4+ {[%clk 0:00:26]} 45. Kf3 {[%clk 0:00:02.1]}
45... Nc5 {[%clk 0:00:24.5]} 46. Nf4 {[%clk 0:00:01.4]} 46... Bc7 {[%clk
0:00:22.2]} 47. Nxg6 {[%clk 0:00:01.7]} 47... Kxg6 {[%clk 0:00:21.6]} 48. Be8+
{[%clk 0:00:01.5]} 48... Kg5 {[%clk 0:00:21]} 49. Ke3 {[%clk 0:00:01.4]} 49...
Bxd6 {[%clk 0:00:19.6]} 50. exd6 {[%clk 0:00:02.3]} 50... Kf6 {[%clk 0:00:20.1]}
51. Kd4 {[%clk 0:00:02.7]} 51... Ne6+ {[%clk 0:00:20.3]} 52. Kd5 {[%clk
0:00:02.9]} 52... Nf8 {[%clk 0:00:20.4]} 53. Bh5 {[%clk 0:00:02]} 53... g6
{[%clk 0:00:20.4]} 54. Bg4 {[%clk 0:00:02.6]} 54... h5 {[%clk 0:00:20.3]} 55.
Be2 {[%clk 0:00:02.5]} 55... Kf5 {[%clk 0:00:18.9]} 56. Bd3+ {[%clk 0:00:01.2]}
56... Kf6 {[%clk 0:00:19.2]} 57. h4 {[%clk 0:00:01.7]} 57... g5 {[%clk
0:00:19.3]} 58. hxg5+ {[%clk 0:00:02.3]} 58... Kxg5 {[%clk 0:00:20.2]} 59. Ke5
{[%clk 0:00:03.1]} 59... h4 {[%clk 0:00:20.3]} 60. Bf1 {[%clk 0:00:02.8]} 60...
Kg6 {[%clk 0:00:16.1]} 61. Bg2 {[%clk 0:00:02.5]} 61... Kf7 {[%clk 0:00:16.2]}
62. Bh3 {[%clk 0:00:01.4]} 62... Ke8 {[%clk 0:00:16.5]} 63. Kf4 {[%clk
0:00:02.1]} 63... Kd8 {[%clk 0:00:17.1]} 64. Kg5 {[%clk 0:00:02.7]} 64... Nd7
{[%clk 0:00:17]} 65. Kxh4 {[%clk 0:00:03.3]} 65... Nc5 {[%clk 0:00:17.6]} 66.
Kg3 {[%clk 0:00:04]} 66... Nb7 {[%clk 0:00:17.9]} 67. Kf4 {[%clk 0:00:04.9]}
67... Nxd6 {[%clk 0:00:18.2]} 1/2-1/2

[Event "Late-Titled-Tuesday-Blitz-June-18-2024"]
[Site "Chess.com"]
[Date "2024.06.18"]
[Round "4"]
[White "ckgchess"]
[Black "Grischuk"]
[Result "1/2-1/2"]
[WhiteElo "2887"]
[BlackElo "3126"]
[TimeControl "180+1"]
[EndTime "14:42:48 PDT"]
[Termination "Game drawn by repetition"]

1. e4 {[%clk 0:03:00.9]} 1... e5 {[%clk 0:02:57.3]} 2. Nf3 {[%clk 0:03:00.9]}
2... Nc6 {[%clk 0:02:57.6]} 3. Bc4 {[%clk 0:03:01.4]} 3... Bc5 {[%clk
0:02:55.9]} 4. c3 {[%clk 0:03:01.5]} 4... Nf6 {[%clk 0:02:55.2]} 5. d4 {[%clk
0:03:02]} 5... exd4 {[%clk 0:02:54.5]} 6. cxd4 {[%clk 0:03:02.9]} 6... Bb4+
{[%clk 0:02:53.4]} 7. Nbd2 {[%clk 0:03:03.5]} 7... d5 {[%clk 0:02:44.3]} 8. exd5
{[%clk 0:03:04.4]} 8... Nxd5 {[%clk 0:02:44.9]} 9. O-O {[%clk 0:03:05.1]} 9...
O-O {[%clk 0:02:40.7]} 10. a3 {[%clk 0:03:05.8]} 10... Bxd2 {[%clk 0:02:40.7]}
11. Bxd2 {[%clk 0:03:06.7]} 11... h6 {[%clk 0:02:31.3]} 12. Qb3 {[%clk
0:02:51.5]} 12... Nb6 {[%clk 0:02:25.6]} 13. d5 {[%clk 0:02:47.6]} 13... Nxc4
{[%clk 0:01:30.6]} 14. Qxc4 {[%clk 0:02:48.5]} 14... Ne7 {[%clk 0:01:31.1]} 15.
Bb4 {[%clk 0:02:44.3]} 15... a5 {[%clk 0:01:29.3]} 16. Bxe7 {[%clk 0:02:36.6]}
16... Qxe7 {[%clk 0:01:30.2]} 17. Rac1 {[%clk 0:02:34.4]} 17... Rd8 {[%clk
0:00:55.9]} 18. Rfe1 {[%clk 0:01:51.2]} 18... Qd6 {[%clk 0:00:55.6]} 19. Qxc7
{[%clk 0:01:41.9]} 19... Qxd5 {[%clk 0:00:54.3]} 20. Rc5 {[%clk 0:01:32.7]}
20... Qd7 {[%clk 0:00:48.4]} 21. h3 {[%clk 0:01:21.5]} 21... Qxc7 {[%clk
0:00:41.2]} 22. Rxc7 {[%clk 0:01:22.4]} 22... b6 {[%clk 0:00:28.4]} 23. Ree7
{[%clk 0:00:44.4]} 23... Be6 {[%clk 0:00:28.4]} 24. Ne5 {[%clk 0:00:45.1]} 24...
Rd1+ {[%clk 0:00:21.5]} 25. Kh2 {[%clk 0:00:45.4]} 25... Rf8 {[%clk 0:00:22.4]}
26. Ng6 {[%clk 0:00:38.8]} 26... Rfd8 {[%clk 0:00:16.4]} 27. Nf4 {[%clk
0:00:39.3]} 27... Bb3 {[%clk 0:00:15.3]} 28. Re3 {[%clk 0:00:26.7]} 28... a4
{[%clk 0:00:15.2]} 29. Rg3 {[%clk 0:00:27.5]} 29... R1d2 {[%clk 0:00:07.3]} 30.
Nh5 {[%clk 0:00:21.6]} 30... g6 {[%clk 0:00:07.7]} 31. f4 {[%clk 0:00:13.2]}
31... Kf8 {[%clk 0:00:06.9]} 32. Nf6 {[%clk 0:00:13.3]} 32... Kg7 {[%clk
0:00:05.1]} 33. Nh5+ {[%clk 0:00:13.5]} 33... Kf8 {[%clk 0:00:05.1]} 34. Nf6
{[%clk 0:00:14]} 34... Kg7 {[%clk 0:00:03]} 35. Ng4 {[%clk 0:00:10.8]} 35...
R2d7 {[%clk 0:00:02.8]} 36. Rc6 {[%clk 0:00:08.1]} 36... Rd6 {[%clk 0:00:03.3]}
37. Rc7 {[%clk 0:00:08]} 37... R8d7 {[%clk 0:00:03]} 38. Rxd7 {[%clk 0:00:05]}
38... Rxd7 {[%clk 0:00:03.3]} 39. Rf3 {[%clk 0:00:05.8]} 39... Rd2 {[%clk
0:00:02.9]} 40. Rf2 {[%clk 0:00:06.2]} 40... Rd4 {[%clk 0:00:02.7]} 41. Ne5
{[%clk 0:00:05.8]} 41... Be6 {[%clk 0:00:02.2]} 42. Kg3 {[%clk 0:00:05.6]} 42...
g5 {[%clk 0:00:02.5]} 43. fxg5 {[%clk 0:00:04.1]} 43... hxg5 {[%clk 0:00:03.4]}
44. Nf3 {[%clk 0:00:05]} 44... Rd3 {[%clk 0:00:03.7]} 45. Kh2 {[%clk 0:00:05.6]}
45... f6 {[%clk 0:00:03.7]} 46. Nd2 {[%clk 0:00:05.9]} 46... Bd5 {[%clk
0:00:03.3]} 47. Nf1 {[%clk 0:00:04.3]} 47... Kg6 {[%clk 0:00:02.9]} 48. Kg1
{[%clk 0:00:04.3]} 48... f5 {[%clk 0:00:02.9]} 49. Rd2 {[%clk 0:00:04.5]} 49...
Rxd2 {[%clk 0:00:02.9]} 50. Nxd2 {[%clk 0:00:05.4]} 50... f4 {[%clk 0:00:03.7]}
51. Kf2 {[%clk 0:00:06.3]} 51... Kf5 {[%clk 0:00:04]} 52. g3 {[%clk 0:00:03.6]}
52... Ke5 {[%clk 0:00:02.7]} 53. Nf3+ {[%clk 0:00:02.7]} 53... Bxf3 {[%clk
0:00:02.5]} 54. Kxf3 {[%clk 0:00:03.6]} 54... fxg3 {[%clk 0:00:03.4]} 55. Kxg3
{[%clk 0:00:04.1]} 55... Kf5 {[%clk 0:00:03]} 56. Kf3 {[%clk 0:00:04.7]} 56...
b5 {[%clk 0:00:03.2]} 57. Kg3 {[%clk 0:00:05]} 57... Ke5 {[%clk 0:00:03.4]} 58.
Kg4 {[%clk 0:00:05.5]} 58... Kf6 {[%clk 0:00:04]} 59. Kg3 {[%clk 0:00:06.2]}
59... Kf5 {[%clk 0:00:04.4]} 60. Kf3 {[%clk 0:00:06.9]} 60... Ke5 {[%clk
0:00:05.1]} 61. Kg4 {[%clk 0:00:07]} 61... Kf6 {[%clk 0:00:05.4]} 62. Kg3 {[%clk
0:00:07.7]} 62... Kf5 {[%clk 0:00:05.7]} 63. Kf3 {[%clk 0:00:08.4]} 63... Ke5
{[%clk 0:00:06.3]} 64. Kg4 {[%clk 0:00:09.3]} 1/2-1/2